[Event "Titled Tuesday Blitz June 28 Early 2022"]
[White "D`Arruda, Ricardo D."]
[Black "Mosutha, Thuso"]
[WhiteFideId "100692"]
[BlackFideId "11302550"]
[WhiteElo "2459"]
[BlackElo "2028"]
[Result "1-0"]
[Round "09"]
[TimeControl "180+1"]
[Date "2022.06.28"]
[WhiteClock "0:00:17"]
[BlackClock "0:00:01"]

1. d4 {[%clk 0:02:53]}  Nf6 {[%clk 0:02:59]} 2. Nf3 {[%clk 0:02:53]}  e6 {[%clk 0:02:59]} 3. Bf4 {[%clk 0:02:50]}  d5 {[%clk 0:02:58]} 4. e3 {[%clk 0:02:49]}  Be7 {[%clk 0:02:58]} 5. Nbd2 {[%clk 0:02:49]}  O-O {[%clk 0:02:58]} 6. c3 {[%clk 0:02:49]}  c5 {[%clk 0:02:59]} 7. Bd3 {[%clk 0:02:48]}  cxd4 {[%clk 0:02:59]} 8. exd4 {[%clk 0:02:48]}  Nc6 {[%clk 0:03:00]} 9. O-O {[%clk 0:02:48]}  Nh5 {[%clk 0:02:59]} 10. Be3 {[%clk 0:02:44]}  h6 {[%clk 0:02:56]} 11. Re1 {[%clk 0:02:43]}  f5 {[%clk 0:02:55]} 12. Ne5 {[%clk 0:02:40]}  Qe8 {[%clk 0:02:43]} 13. f4 {[%clk 0:02:24]}  Nxe5 {[%clk 0:02:36]} 14. dxe5 {[%clk 0:02:22]}  g5 {[%clk 0:02:37]} 15. fxg5 {[%clk 0:02:14]}  hxg5 {[%clk 0:02:36]} 16. Nf3 {[%clk 0:02:14]}  Qg6 {[%clk 0:02:27]} 17. g4 {[%clk 0:02:06]}  Nf4 {[%clk 0:02:24]} 18. Bxf4 {[%clk 0:02:04]}  gxf4 {[%clk 0:02:24]} 19. Kh1 {[%clk 0:02:01]}  Kh8 {[%clk 0:02:11]} 20. gxf5 {[%clk 0:02:00]}  exf5 {[%clk 0:02:11]} 21. Qe2 {[%clk 0:01:42]}  Bc5 {[%clk 0:02:07]} 22. Nd4 {[%clk 0:01:40]}  Bxd4 {[%clk 0:02:07]} 23. cxd4 {[%clk 0:01:39]}  Be6 {[%clk 0:02:08]} 24. Rg1 {[%clk 0:01:37]}  Qh6 {[%clk 0:02:07]} 25. Qf3 {[%clk 0:01:27]}  Rg8 {[%clk 0:02:05]} 26. Rxg8+ {[%clk 0:01:19]}  Rxg8 {[%clk 0:02:06]} 27. Rf1 {[%clk 0:01:14]}  Rg3 {[%clk 0:01:55]} 28. Qe2 {[%clk 0:01:03]}  Re3 {[%clk 0:01:39]} 29. Qd1 {[%clk 0:00:59]}  Qh3 {[%clk 0:01:34]} 30. Be2 {[%clk 0:00:57]}  Rg3 {[%clk 0:00:56]} 31. Rf2 {[%clk 0:00:54]}  Bf7 {[%clk 0:00:37]} 32. Bf3 {[%clk 0:00:49]}  Qh4 {[%clk 0:00:23]} 33. Qd2 {[%clk 0:00:44]}  Rg5 {[%clk 0:00:13]} 34. Bg2 {[%clk 0:00:39]}  Rh5 {[%clk 0:00:10]} 35. Qxf4 {[%clk 0:00:38]}  Qe7 {[%clk 0:00:07]} 36. Bf3 {[%clk 0:00:32]}  Rh4 {[%clk 0:00:04]} 37. Qxf5 {[%clk 0:00:31]}  Rxd4 {[%clk 0:00:02]} 38. Rg2 {[%clk 0:00:24]}  Rh4 {[%clk 0:00:02]} 39. Qf6+ {[%clk 0:00:20]}  Qxf6 {[%clk 0:00:02]} 40. exf6 {[%clk 0:00:21]}  Rf4 {[%clk 0:00:02]} 41. Rf2 {[%clk 0:00:17]}  Rxf6 {[%clk 0:00:02]} 42. Kg2 {[%clk 0:00:18]}  d4 {[%clk 0:00:01]} 43. Bxb7 {[%clk 0:00:17]}  Rxf2+ {[%clk 0:00:02]} 44. Kxf2 {[%clk 0:00:17]}  Bxa2 {[%clk 0:00:03]} 45. Kf3 {[%clk 0:00:16]}  Bb1 {[%clk 0:00:02]} 46. Be4 {[%clk 0:00:15]}  Ba2 {[%clk 0:00:02]} 47. Bd3 {[%clk 0:00:15]}  Bd5+ {[%clk 0:00:02]} 48. Kf4 {[%clk 0:00:16]}  Bg2 {[%clk 0:00:01]} 49. Ke5 {[%clk 0:00:17]}  Kg7 {[%clk 0:00:02]} 50. Kxd4 {[%clk 0:00:18]}  Kf6 {[%clk 0:00:02]} 51. Be4 {[%clk 0:00:18]}  Bf1 {[%clk 0:00:02]} 52. h4 {[%clk 0:00:18]}  Kg7 {[%clk 0:00:01]} 53. Kc5 {[%clk 0:00:16]}  Kh6 {[%clk 0:00:02]} 54. Bf3 {[%clk 0:00:17]}  Bd3 {[%clk 0:00:01]} 55. Kc6 {[%clk 0:00:17]}  Bf1 {[%clk 0:00:01]} 56. Kb7 {[%clk 0:00:17]}  a6 {[%clk 0:00:01]} 57. Kb6 {[%clk 0:00:17]}  Kg6 {[%clk 0:00:02]} 58. Ka5 {[%clk 0:00:17]}  Bd3 {[%clk 0:00:01]} 59. Kb4 {[%clk 0:00:17]}  Kh6 {[%clk 0:00:02]} 60. Kc3 {[%clk 0:00:17]}  Bf1 {[%clk 0:00:02]} 61. Kd2 {[%clk 0:00:18]}  Bb5 {[%clk 0:00:02]} 62. Be2 {[%clk 0:00:18]}  Bd7 {[%clk 0:00:01]} 63. Ke3 {[%clk 0:00:17]} 1-0


[Site "https://www.chess.com"]

[Event "Titled Tuesday Blitz June 28 Early 2022"]
[White "Daneshvar, Bardiya"]
[Black "Sevian, Samuel"]
[WhiteFideId "12576468"]
[BlackFideId "2040506"]
[WhiteElo "2303"]
[BlackElo "2692"]
[Result "0-1"]
[Round "09"]
[TimeControl "180+1"]
[Date "2022.06.28"]
[WhiteClock "0:00:02"]
[BlackClock "0:00:43"]

1. b3 {[%clk 0:03:00]}  a5 {[%clk 0:02:59]} 2. e4 {[%clk 0:03:00]}  a4 {[%clk 0:02:59]} 3. Nf3 {[%clk 0:02:59]}  e6 {[%clk 0:02:57]} 4. bxa4 {[%clk 0:02:57]}  d5 {[%clk 0:02:54]} 5. e5 {[%clk 0:02:46]}  Bd7 {[%clk 0:02:51]} 6. d4 {[%clk 0:02:42]}  Bxa4 {[%clk 0:02:51]} 7. Bd3 {[%clk 0:02:41]}  Ne7 {[%clk 0:02:51]} 8. O-O {[%clk 0:02:38]}  Ng6 {[%clk 0:02:45]} 9. Nc3 {[%clk 0:02:35]}  Bd7 {[%clk 0:02:45]} 10. Ne2 {[%clk 0:02:35]}  Be7 {[%clk 0:02:45]} 11. g3 {[%clk 0:02:30]}  c5 {[%clk 0:02:45]} 12. c3 {[%clk 0:02:29]}  Nc6 {[%clk 0:02:45]} 13. h4 {[%clk 0:02:28]}  h6 {[%clk 0:02:42]} 14. Be3 {[%clk 0:02:22]}  O-O {[%clk 0:02:41]} 15. h5 {[%clk 0:02:20]}  Nh8 {[%clk 0:02:42]} 16. dxc5 {[%clk 0:02:20]}  f6 {[%clk 0:02:41]} 17. Bd4 {[%clk 0:02:09]}  Nf7 {[%clk 0:02:38]} 18. exf6 {[%clk 0:02:09]}  Bxf6 {[%clk 0:02:37]} 19. Bxf6 {[%clk 0:02:08]}  Qxf6 {[%clk 0:02:38]} 20. Ned4 {[%clk 0:02:06]}  e5 {[%clk 0:02:37]} 21. Nxc6 {[%clk 0:02:05]}  bxc6 {[%clk 0:02:36]} 22. Nh4 {[%clk 0:02:00]}  e4 {[%clk 0:02:35]} 23. Bxe4 {[%clk 0:01:59]}  Ng5 {[%clk 0:02:24]} 24. Bg2 {[%clk 0:01:52]}  Qxc3 {[%clk 0:02:17]} 25. Ng6 {[%clk 0:01:51]}  Rf7 {[%clk 0:02:15]} 26. a4 {[%clk 0:01:38]}  Qxc5 {[%clk 0:02:13]} 27. Ne5 {[%clk 0:01:37]}  Re7 {[%clk 0:02:12]} 28. Nxd7 {[%clk 0:01:37]}  Rxd7 {[%clk 0:02:13]} 29. Qd3 {[%clk 0:01:33]}  Kh8 {[%clk 0:02:10]} 30. Kh1 {[%clk 0:01:31]}  Qd6 {[%clk 0:02:05]} 31. a5 {[%clk 0:01:27]}  Ne6 {[%clk 0:02:05]} 32. a6 {[%clk 0:01:22]}  Nc5 {[%clk 0:02:04]} 33. Qf5 {[%clk 0:01:21]}  Rxa6 {[%clk 0:01:44]} 34. Rxa6 {[%clk 0:01:20]}  Nxa6 {[%clk 0:01:45]} 35. Re1 {[%clk 0:01:20]}  Rd8 {[%clk 0:01:44]} 36. Re6 {[%clk 0:01:13]}  Qd7 {[%clk 0:01:42]} 37. Qe5 {[%clk 0:01:11]}  Nc5 {[%clk 0:01:39]} 38. Rxh6+ {[%clk 0:00:58]}  Kg8 {[%clk 0:01:38]} 39. Rg6 {[%clk 0:00:59]}  Re8 {[%clk 0:01:22]} 40. Qc3 {[%clk 0:00:57]}  Ne4 {[%clk 0:01:03]} 41. Bxe4 {[%clk 0:00:51]}  Rxe4 {[%clk 0:01:04]} 42. h6 {[%clk 0:00:46]}  Qh3+ {[%clk 0:01:02]} 43. Kg1 {[%clk 0:00:45]}  d4 {[%clk 0:01:02]} 44. Qa5 {[%clk 0:00:20]}  Rg4 {[%clk 0:00:47]} 45. Qd8+ {[%clk 0:00:09]}  Kf7 {[%clk 0:00:48]} 46. Rxc6 {[%clk 0:00:03]}  Rxg3+ {[%clk 0:00:44]} 47. fxg3 {[%clk 0:00:03]}  Qxg3+ {[%clk 0:00:45]} 48. Kf1 {[%clk 0:00:04]}  Qf3+ {[%clk 0:00:44]} 49. Ke1 {[%clk 0:00:04]}  Qxc6 {[%clk 0:00:45]} 50. hxg7 {[%clk 0:00:04]}  Qe4+ {[%clk 0:00:44]} 51. Kd1 {[%clk 0:00:04]}  Kxg7 {[%clk 0:00:43]} 52. Qd7+ {[%clk 0:00:03]}  Kf6 {[%clk 0:00:44]} 53. Qd6+ {[%clk 0:00:03]}  Kf5 {[%clk 0:00:43]} 54. Qf8+ {[%clk 0:00:03]}  Kg4 {[%clk 0:00:43]} 55. Qg7+ {[%clk 0:00:03]}  Kf3 {[%clk 0:00:43]} 56. Qf7+ {[%clk 0:00:03]}  Ke3 {[%clk 0:00:43]} 57. Qa7 {[%clk 0:00:02]}  Qb1# {[%clk 0:00:43]} 0-1


[Site "https://www.chess.com"]

[Event "Titled Tuesday Blitz June 28 Early 2022"]
[White "Dixit, Arun"]
[Black "Ciuffoletti, Paolo"]
[WhiteFideId "30937671"]
[BlackFideId "807630"]
[WhiteElo "2386"]
[BlackElo "2143"]
[Result "0-1"]
[Round "09"]
[TimeControl "180+1"]
[Date "2022.06.28"]
[WhiteClock "0:00:56"]
[BlackClock "0:01:07"]

1. d4 {[%clk 0:03:00]}  d5 {[%clk 0:02:59]} 2. c4 {[%clk 0:03:01]}  c6 {[%clk 0:02:59]} 3. Nf3 {[%clk 0:03:01]}  Nf6 {[%clk 0:02:59]} 4. Qc2 {[%clk 0:03:01]}  g6 {[%clk 0:02:57]} 5. Nc3 {[%clk 0:03:01]}  Bg7 {[%clk 0:02:57]} 6. Bf4 {[%clk 0:02:56]}  dxc4 {[%clk 0:02:48]} 7. a4 {[%clk 0:02:52]}  Nd5 {[%clk 0:02:42]} 8. Bd2 {[%clk 0:02:45]}  O-O {[%clk 0:02:11]} 9. g3 {[%clk 0:02:30]}  Bf5 {[%clk 0:01:58]} 10. e4 {[%clk 0:02:07]}  Nb4 {[%clk 0:01:54]} 11. Qc1 {[%clk 0:02:04]}  Bg4 {[%clk 0:01:54]} 12. Ne5 {[%clk 0:02:02]}  Bxe5 {[%clk 0:01:45]} 13. dxe5 {[%clk 0:02:03]}  Bf3 {[%clk 0:01:39]} 14. Rg1 {[%clk 0:02:01]}  N8a6 {[%clk 0:01:33]} 15. Bxc4 {[%clk 0:01:44]}  Nc5 {[%clk 0:01:30]} 16. Kf1 {[%clk 0:01:39]}  Qd4 {[%clk 0:01:17]} 17. Be2 {[%clk 0:01:17]}  Ncd3 {[%clk 0:01:08]} 18. Qb1 {[%clk 0:00:56]}  Qxf2# {[%clk 0:01:07]} 0-1


[Site "https://www.chess.com"]

[Event "Titled Tuesday Blitz June 28 Early 2022"]
[White "Dwilewicz, Katarzyna"]
[Black "Horak, Martin"]
[WhiteFideId "1148486"]
[BlackFideId "367095"]
[WhiteElo "1907"]
[BlackElo "1997"]
[Result "1-0"]
[Round "09"]
[TimeControl "180+1"]
[Date "2022.06.28"]
[WhiteClock "0:00:04"]
[BlackClock "0:00:06"]

1. e4 {[%clk 0:03:00]}  c5 {[%clk 0:02:59]} 2. Nf3 {[%clk 0:02:59]}  d6 {[%clk 0:02:59]} 3. d4 {[%clk 0:02:59]}  cxd4 {[%clk 0:03:00]} 4. Nxd4 {[%clk 0:02:59]}  Nf6 {[%clk 0:03:01]} 5. Nc3 {[%clk 0:02:59]}  Nc6 {[%clk 0:03:02]} 6. Bc4 {[%clk 0:02:55]}  e6 {[%clk 0:03:01]} 7. Be3 {[%clk 0:02:54]}  a6 {[%clk 0:02:51]} 8. Qe2 {[%clk 0:02:54]}  Bd7 {[%clk 0:02:50]} 9. Bb3 {[%clk 0:02:41]}  Rc8 {[%clk 0:02:41]} 10. O-O-O {[%clk 0:02:39]}  Qa5 {[%clk 0:02:22]} 11. Kb1 {[%clk 0:02:36]}  b5 {[%clk 0:02:16]} 12. Nxc6 {[%clk 0:02:22]}  Bxc6 {[%clk 0:02:10]} 13. Nd5 {[%clk 0:02:19]}  Bxd5 {[%clk 0:01:20]} 14. exd5 {[%clk 0:02:18]}  e5 {[%clk 0:01:21]} 15. f4 {[%clk 0:02:11]}  e4 {[%clk 0:01:17]} 16. Bd4 {[%clk 0:02:06]}  Be7 {[%clk 0:01:16]} 17. Bxf6 {[%clk 0:01:46]}  Bxf6 {[%clk 0:01:16]} 18. Qxe4+ {[%clk 0:01:46]}  Kf8 {[%clk 0:01:16]} 19. g4 {[%clk 0:01:38]}  g6 {[%clk 0:00:35]} 20. g5 {[%clk 0:01:37]}  Bd8 {[%clk 0:00:34]} 21. Rhe1 {[%clk 0:01:27]}  Qb6 {[%clk 0:00:32]} 22. h4 {[%clk 0:01:04]}  h6 {[%clk 0:00:25]} 23. f5 {[%clk 0:00:57]}  hxg5 {[%clk 0:00:22]} 24. fxg6 {[%clk 0:00:53]}  Rc7 {[%clk 0:00:16]} 25. h5 {[%clk 0:00:37]}  Kg7 {[%clk 0:00:12]} 26. gxf7 {[%clk 0:00:30]}  Rxf7 {[%clk 0:00:10]} 27. Qg6+ {[%clk 0:00:26]}  Kf8 {[%clk 0:00:10]} 28. Re6 {[%clk 0:00:17]}  Rg8 {[%clk 0:00:06]} 29. Qh6+ {[%clk 0:00:16]}  Rgg7 {[%clk 0:00:05]} 30. Rde1 {[%clk 0:00:16]}  Re7 {[%clk 0:00:02]} 31. Qh8+ {[%clk 0:00:08]}  Kf7 {[%clk 0:00:02]} 32. Rxe7+ {[%clk 0:00:07]}  Bxe7 {[%clk 0:00:03]} 33. Rxe7+ {[%clk 0:00:08]}  Kf6 {[%clk 0:00:02]} 34. Qxg7+ {[%clk 0:00:08]}  Kf5 {[%clk 0:00:03]} 35. Rf7+ {[%clk 0:00:08]}  Kg4 {[%clk 0:00:04]} 36. a3 {[%clk 0:00:07]}  a5 {[%clk 0:00:04]} 37. Qc3 {[%clk 0:00:05]}  a4 {[%clk 0:00:04]} 38. Qf3+ {[%clk 0:00:05]}  Kh4 {[%clk 0:00:04]} 39. Qf2+ {[%clk 0:00:06]}  Qxf2 {[%clk 0:00:04]} 40. Rxf2 {[%clk 0:00:06]}  axb3 {[%clk 0:00:04]} 41. h6 {[%clk 0:00:07]}  g4 {[%clk 0:00:05]} 42. h7 {[%clk 0:00:07]}  g3 {[%clk 0:00:06]} 43. h8=Q+ {[%clk 0:00:04]} 1-0


[Site "https://www.chess.com"]

[Event "Titled Tuesday Blitz June 28 Early 2022"]
[White "Gardezi, Arsal"]
[Black "Matveeva, Olga"]
[WhiteFideId "30949521"]
[BlackFideId "24107018"]
[WhiteElo "1781"]
[BlackElo "2052"]
[Result "0-1"]
[Round "09"]
[TimeControl "180+1"]
[Date "2022.06.28"]
[WhiteClock "0:01:01"]
[BlackClock "0:01:53"]

1. e4 {[%clk 0:03:00]}  e6 {[%clk 0:02:59]} 2. d4 {[%clk 0:02:59]}  d5 {[%clk 0:03:00]} 3. Nd2 {[%clk 0:03:00]}  c5 {[%clk 0:02:59]} 4. Ngf3 {[%clk 0:02:58]}  cxd4 {[%clk 0:02:58]} 5. exd5 {[%clk 0:02:58]}  Qxd5 {[%clk 0:02:59]} 6. Bc4 {[%clk 0:02:59]}  Qd6 {[%clk 0:02:58]} 7. O-O {[%clk 0:02:59]}  Nf6 {[%clk 0:02:58]} 8. Nb3 {[%clk 0:02:57]}  Nc6 {[%clk 0:02:58]} 9. Nbxd4 {[%clk 0:02:55]}  Nxd4 {[%clk 0:02:59]} 10. Nxd4 {[%clk 0:02:54]}  a6 {[%clk 0:02:58]} 11. Bb3 {[%clk 0:02:49]}  Qc7 {[%clk 0:02:57]} 12. c3 {[%clk 0:02:48]}  Bd6 {[%clk 0:02:52]} 13. h3 {[%clk 0:02:41]}  O-O {[%clk 0:02:49]} 14. Qf3 {[%clk 0:02:25]}  Bd7 {[%clk 0:02:45]} 15. Bg5 {[%clk 0:02:11]}  Bh2+ {[%clk 0:02:42]} 16. Kh1 {[%clk 0:02:09]}  Be5 {[%clk 0:02:42]} 17. Rfe1 {[%clk 0:01:59]}  h6 {[%clk 0:02:38]} 18. Bh4 {[%clk 0:01:48]}  Bxd4 {[%clk 0:02:31]} 19. cxd4 {[%clk 0:01:42]}  Bc6 {[%clk 0:02:31]} 20. Qc3 {[%clk 0:01:29]}  Qf4 {[%clk 0:02:22]} 21. Bg3 {[%clk 0:01:09]}  Qg5 {[%clk 0:02:21]} 22. Re5 {[%clk 0:01:05]}  Qg6 {[%clk 0:02:11]} 23. Bc2 {[%clk 0:01:05]}  Ne4 {[%clk 0:02:02]} 24. Qd3 {[%clk 0:01:05]}  Nxf2+ {[%clk 0:01:54]} 25. Bxf2 {[%clk 0:01:01]}  Qxg2# {[%clk 0:01:53]} 0-1


[Site "https://www.chess.com"]

[Event "Titled Tuesday Blitz June 28 Early 2022"]
[White "Golubovskis, Maksims"]
[Black "Starozhilov, Leonid"]
[WhiteFideId "11608528"]
[BlackFideId "14106752"]
[WhiteElo "2102"]
[BlackElo "2414"]
[Result "0-1"]
[Round "09"]
[TimeControl "180+1"]
[Date "2022.06.28"]
[WhiteClock "0:01:28"]
[BlackClock "0:01:24"]

1. e4 {[%clk 0:03:00]}  Nc6 {[%clk 0:02:58]} 2. Nf3 {[%clk 0:02:59]}  d6 {[%clk 0:02:59]} 3. d4 {[%clk 0:02:58]}  Nf6 {[%clk 0:02:59]} 4. Nc3 {[%clk 0:02:57]}  g6 {[%clk 0:02:59]} 5. Be2 {[%clk 0:02:55]}  Bg7 {[%clk 0:02:59]} 6. O-O {[%clk 0:02:55]}  Bg4 {[%clk 0:02:59]} 7. Be3 {[%clk 0:02:47]}  O-O {[%clk 0:02:58]} 8. d5 {[%clk 0:02:46]}  Bxf3 {[%clk 0:02:58]} 9. Bxf3 {[%clk 0:02:46]}  Ne5 {[%clk 0:02:58]} 10. Be2 {[%clk 0:02:47]}  c6 {[%clk 0:02:59]} 11. f4 {[%clk 0:02:29]}  Ned7 {[%clk 0:02:58]} 12. dxc6 {[%clk 0:02:30]}  bxc6 {[%clk 0:02:58]} 13. Qd2 {[%clk 0:02:27]}  a5 {[%clk 0:02:31]} 14. Rad1 {[%clk 0:02:23]}  Rb8 {[%clk 0:02:25]} 15. b3 {[%clk 0:02:22]}  Qc7 {[%clk 0:02:25]} 16. Bf3 {[%clk 0:02:22]}  Rfd8 {[%clk 0:02:03]} 17. g4 {[%clk 0:02:16]}  Nc5 {[%clk 0:01:58]} 18. Bxc5 {[%clk 0:01:58]}  dxc5 {[%clk 0:01:58]} 19. Qe3 {[%clk 0:01:58]}  Nxg4 {[%clk 0:01:51]} 20. Qxc5 {[%clk 0:01:45]}  Qxf4 {[%clk 0:01:40]} 21. Bxg4 {[%clk 0:01:33]}  Qxg4+ {[%clk 0:01:37]} 22. Kh1 {[%clk 0:01:32]}  Rxd1 {[%clk 0:01:24]} 23. Nxd1 {[%clk 0:01:28]}  Qxe4+ {[%clk 0:01:24]} 0-1


[Site "https://www.chess.com"]

[Event "Titled Tuesday Blitz June 28 Early 2022"]
[White "Gundam, Rohit"]
[Black "Hoffmann, Asa"]
[WhiteFideId "75002809"]
[BlackFideId "2001470"]
[WhiteElo "2336"]
[BlackElo "2117"]
[Result "0-1"]
[Round "09"]
[TimeControl "180+1"]
[Date "2022.06.28"]
[WhiteClock "0:00:05"]
[BlackClock "0:00:28"]

1. d4 {[%clk 0:03:00]}  Nf6 {[%clk 0:02:58]} 2. Nf3 {[%clk 0:03:01]}  d6 {[%clk 0:02:57]} 3. c4 {[%clk 0:03:02]}  c6 {[%clk 0:02:57]} 4. Nc3 {[%clk 0:03:02]}  Bf5 {[%clk 0:02:52]} 5. Nh4 {[%clk 0:03:01]}  Bd7 {[%clk 0:02:51]} 6. e4 {[%clk 0:03:01]}  e5 {[%clk 0:02:51]} 7. Nf3 {[%clk 0:03:00]}  Qc7 {[%clk 0:02:50]} 8. h3 {[%clk 0:02:59]}  Be7 {[%clk 0:02:50]} 9. Be3 {[%clk 0:02:59]}  O-O {[%clk 0:02:49]} 10. Qd2 {[%clk 0:02:59]}  a6 {[%clk 0:02:47]} 11. a4 {[%clk 0:02:57]}  a5 {[%clk 0:02:44]} 12. Be2 {[%clk 0:02:56]}  Na6 {[%clk 0:02:44]} 13. O-O {[%clk 0:02:56]}  Nb4 {[%clk 0:02:44]} 14. b3 {[%clk 0:02:46]}  Rfe8 {[%clk 0:02:42]} 15. dxe5 {[%clk 0:02:40]}  dxe5 {[%clk 0:02:41]} 16. Qb2 {[%clk 0:02:40]}  h6 {[%clk 0:02:31]} 17. Rfd1 {[%clk 0:02:40]}  Rad8 {[%clk 0:02:30]} 18. Rd2 {[%clk 0:02:40]}  Be6 {[%clk 0:02:21]} 19. Rad1 {[%clk 0:02:40]}  Rxd2 {[%clk 0:02:19]} 20. Qxd2 {[%clk 0:02:39]}  Rd8 {[%clk 0:02:13]} 21. Qc1 {[%clk 0:02:39]}  Rxd1+ {[%clk 0:02:12]} 22. Qxd1 {[%clk 0:02:40]}  Nd7 {[%clk 0:02:11]} 23. Bd3 {[%clk 0:02:31]}  Bc5 {[%clk 0:02:10]} 24. Bxc5 {[%clk 0:02:24]}  Nxc5 {[%clk 0:02:09]} 25. Bb1 {[%clk 0:02:25]}  f6 {[%clk 0:02:06]} 26. Nd2 {[%clk 0:02:12]}  Qd7 {[%clk 0:02:04]} 27. Qe2 {[%clk 0:02:10]}  Qd4 {[%clk 0:02:01]} 28. Qe3 {[%clk 0:02:10]}  Qxe3 {[%clk 0:01:41]} 29. fxe3 {[%clk 0:02:11]}  Kf7 {[%clk 0:01:40]} 30. Kf2 {[%clk 0:02:11]}  Ke7 {[%clk 0:01:40]} 31. Ke2 {[%clk 0:02:12]}  Kd6 {[%clk 0:01:40]} 32. Na2 {[%clk 0:02:10]}  Nba6 {[%clk 0:01:35]} 33. Nc3 {[%clk 0:02:08]}  Nd7 {[%clk 0:01:35]} 34. Bc2 {[%clk 0:01:59]}  Kc5 {[%clk 0:01:30]} 35. Ndb1 {[%clk 0:01:55]}  Kb4 {[%clk 0:01:29]} 36. Na2+ {[%clk 0:01:55]}  Kc5 {[%clk 0:01:28]} 37. Kd2 {[%clk 0:01:55]}  b5 {[%clk 0:01:24]} 38. cxb5 {[%clk 0:01:54]}  cxb5 {[%clk 0:01:24]} 39. Nac3 {[%clk 0:01:53]}  bxa4 {[%clk 0:01:15]} 40. bxa4 {[%clk 0:01:28]}  Kb4 {[%clk 0:01:13]} 41. Kc1 {[%clk 0:01:28]}  Nac5 {[%clk 0:01:11]} 42. Kb2 {[%clk 0:01:28]}  Bc4 {[%clk 0:01:07]} 43. g3 {[%clk 0:01:12]}  Nb6 {[%clk 0:01:07]} 44. h4 {[%clk 0:01:07]}  Nbxa4+ {[%clk 0:01:05]} 45. Bxa4 {[%clk 0:01:08]}  Nxa4+ {[%clk 0:01:04]} 46. Nxa4 {[%clk 0:01:09]}  Kxa4 {[%clk 0:01:04]} 47. Kc3 {[%clk 0:01:08]}  Be6 {[%clk 0:00:59]} 48. Nd2 {[%clk 0:00:57]}  Kb5 {[%clk 0:00:57]} 49. Nb1 {[%clk 0:00:55]}  a4 {[%clk 0:00:56]} 50. Na3+ {[%clk 0:00:55]}  Kc5 {[%clk 0:00:56]} 51. Nb1 {[%clk 0:00:51]}  Bg4 {[%clk 0:00:53]} 52. Nd2 {[%clk 0:00:48]}  Be2 {[%clk 0:00:47]} 53. Nb1 {[%clk 0:00:45]}  h5 {[%clk 0:00:44]} 54. Nd2 {[%clk 0:00:44]}  g6 {[%clk 0:00:43]} 55. Nb1 {[%clk 0:00:44]}  f5 {[%clk 0:00:43]} 56. Nd2 {[%clk 0:00:41]}  Bf3 {[%clk 0:00:41]} 57. exf5 {[%clk 0:00:34]}  gxf5 {[%clk 0:00:41]} 58. Nb1 {[%clk 0:00:35]}  Kd5 {[%clk 0:00:40]} 59. Nd2 {[%clk 0:00:29]}  Bd1 {[%clk 0:00:40]} 60. Kb4 {[%clk 0:00:26]}  Bc2 {[%clk 0:00:38]} 61. Kc3 {[%clk 0:00:23]}  Bd1 {[%clk 0:00:38]} 62. Kb4 {[%clk 0:00:23]}  Ke6 {[%clk 0:00:35]} 63. Kc3 {[%clk 0:00:21]}  f4 {[%clk 0:00:34]} 64. exf4 {[%clk 0:00:20]}  exf4 {[%clk 0:00:34]} 65. gxf4 {[%clk 0:00:18]}  Kf5 {[%clk 0:00:34]} 66. Nf1 {[%clk 0:00:11]}  Kxf4 {[%clk 0:00:33]} 67. Kd2 {[%clk 0:00:11]}  Bg4 {[%clk 0:00:31]} 68. Ne3 {[%clk 0:00:06]}  Kg3 {[%clk 0:00:31]} 69. Nc4 {[%clk 0:00:03]}  Kxh4 {[%clk 0:00:30]} 70. Ke1 {[%clk 0:00:04]}  Kg3 {[%clk 0:00:30]} 71. Kf1 {[%clk 0:00:04]}  h4 {[%clk 0:00:30]} 72. Kg1 {[%clk 0:00:04]}  h3 {[%clk 0:00:30]} 73. Nd2 {[%clk 0:00:04]}  h2+ {[%clk 0:00:30]} 74. Kh1 {[%clk 0:00:04]}  Bf3+ {[%clk 0:00:28]} 75. Nxf3 {[%clk 0:00:04]}  Kxf3 {[%clk 0:00:28]} 76. Kxh2 {[%clk 0:00:05]} 0-1


[Site "https://www.chess.com"]

[Event "Titled Tuesday Blitz June 28 Early 2022"]
[White "Hartikainen, Jarmo"]
[Black "Piliczewski, Bogusz"]
[WhiteFideId "503134"]
[BlackFideId "1104144"]
[WhiteElo "2148"]
[BlackElo "1896"]
[Result "0-1"]
[Round "09"]
[TimeControl "180+1"]
[Date "2022.06.28"]
[WhiteClock "0:00:05"]
[BlackClock "0:00:26"]

1. e4 {[%clk 0:03:00]}  c6 {[%clk 0:02:59]} 2. d4 {[%clk 0:03:00]}  d5 {[%clk 0:02:59]} 3. Nc3 {[%clk 0:02:58]}  dxe4 {[%clk 0:02:58]} 4. Nxe4 {[%clk 0:02:59]}  Bf5 {[%clk 0:02:58]} 5. Ng3 {[%clk 0:02:59]}  Bg6 {[%clk 0:02:58]} 6. h4 {[%clk 0:02:59]}  h6 {[%clk 0:02:58]} 7. Bc4 {[%clk 0:03:00]}  e6 {[%clk 0:02:55]} 8. N1e2 {[%clk 0:02:59]}  Bd6 {[%clk 0:02:53]} 9. Nf4 {[%clk 0:02:58]}  Bxf4 {[%clk 0:02:50]} 10. Bxf4 {[%clk 0:02:58]}  Nf6 {[%clk 0:02:46]} 11. c3 {[%clk 0:02:43]}  Nd5 {[%clk 0:02:46]} 12. Bd2 {[%clk 0:02:36]}  Nd7 {[%clk 0:02:44]} 13. Qe2 {[%clk 0:02:34]}  N7f6 {[%clk 0:02:30]} 14. Bd3 {[%clk 0:02:07]}  Bxd3 {[%clk 0:02:27]} 15. Qxd3 {[%clk 0:02:08]}  Qc7 {[%clk 0:02:23]} 16. O-O-O {[%clk 0:01:56]}  O-O-O {[%clk 0:02:21]} 17. Rhe1 {[%clk 0:01:37]}  Nf4 {[%clk 0:02:14]} 18. Qf3 {[%clk 0:01:35]}  g5 {[%clk 0:02:13]} 19. Bxf4 {[%clk 0:01:31]}  Qxf4+ {[%clk 0:02:12]} 20. Qxf4 {[%clk 0:01:31]}  gxf4 {[%clk 0:02:12]} 21. Ne4 {[%clk 0:01:31]}  Nd5 {[%clk 0:02:02]} 22. c4 {[%clk 0:01:24]}  Ne7 {[%clk 0:02:00]} 23. c5 {[%clk 0:01:21]}  Nf5 {[%clk 0:01:56]} 24. g4 {[%clk 0:01:12]}  fxg3 {[%clk 0:01:40]} 25. fxg3 {[%clk 0:01:12]}  Rxd4 {[%clk 0:01:38]} 26. Rxd4 {[%clk 0:01:09]}  Nxd4 {[%clk 0:01:38]} 27. Nd6+ {[%clk 0:01:09]}  Kd7 {[%clk 0:01:32]} 28. Nxf7 {[%clk 0:01:10]}  Rg8 {[%clk 0:01:24]} 29. Ne5+ {[%clk 0:01:08]}  Ke7 {[%clk 0:01:23]} 30. g4 {[%clk 0:01:08]}  Rg7 {[%clk 0:00:59]} 31. Re4 {[%clk 0:01:05]}  Nb5 {[%clk 0:00:56]} 32. h5 {[%clk 0:00:44]}  Rg5 {[%clk 0:00:50]} 33. Ng6+ {[%clk 0:00:39]}  Kf6 {[%clk 0:00:48]} 34. b4 {[%clk 0:00:37]}  a5 {[%clk 0:00:45]} 35. Rf4+ {[%clk 0:00:29]}  Kg7 {[%clk 0:00:45]} 36. Re4 {[%clk 0:00:21]}  axb4 {[%clk 0:00:43]} 37. Rxe6 {[%clk 0:00:20]}  Rxg4 {[%clk 0:00:38]} 38. Re7+ {[%clk 0:00:19]}  Kf6 {[%clk 0:00:37]} 39. Rxb7 {[%clk 0:00:19]}  Rc4+ {[%clk 0:00:34]} 40. Kb1 {[%clk 0:00:18]}  Rxc5 {[%clk 0:00:35]} 41. Rh7 {[%clk 0:00:15]}  Rxh5 {[%clk 0:00:32]} 42. Nf8 {[%clk 0:00:11]}  Rh2 {[%clk 0:00:29]} 43. Nd7+ {[%clk 0:00:10]}  Kg6 {[%clk 0:00:29]} 44. Re7 {[%clk 0:00:09]}  Nc3+ {[%clk 0:00:28]} 45. Kc1 {[%clk 0:00:09]}  Nxa2+ {[%clk 0:00:28]} 46. Kd1 {[%clk 0:00:09]}  Nc3+ {[%clk 0:00:28]} 47. Kc1 {[%clk 0:00:09]}  b3 {[%clk 0:00:28]} 48. Re6+ {[%clk 0:00:09]}  Kf7 {[%clk 0:00:27]} 49. Rf6+ {[%clk 0:00:06]}  Ke7 {[%clk 0:00:27]} 50. Rxc6 {[%clk 0:00:05]}  Rc2# {[%clk 0:00:26]} 0-1


[Site "https://www.chess.com"]